fUSD/lending_fUSD_20251224
["ID","MTS","AMOUNT","RATE_DAILY","PERIOD"]
[399667773,1766595951624,-606.05829659,0.00014214,2]
[399667774,1766595954292,-388.94170341,0.00014214,2]
[399667775,1766595991142,1542.29,6.716e-05,2]
[399667776,1766595991387,1542.29,7.069e-05,2]
[399667777,1766595991557,1542.29,7.423e-05,2]
[399667778,1766595991767,1542.29,7.776e-05,2]
[399667779,1766595991832,-300.0,0.00014213,2]
[399667780,1766595992027,1542.29,8.13e-05,2]
[399667781,1766595992234,1542.29,8.483e-05,2]
[399667782,1766595992440,145.04453948,8.837e-05,2]
[399667783,1766595992465,1397.24546052,8.837e-05,2]
[399667784,1766595992667,1542.29,9.19e-05,2]
[399667785,1766595992878,1542.29,9.544e-05,2]
[399667786,1766595993126,1542.29,9.897e-05,2]
[399667787,1766595993441,1542.29,0.00010251,2]
[399667788,1766595993559,1542.29,0.00010604,2]
[399667789,1766595993817,1542.29,0.00010958,2]
[399667790,1766595994164,746.27,0.00011311,2]
[399667791,1766595994191,796.02,0.00011311,2]
[399667792,1766595994471,1542.29,0.00011665,2]
[399667793,1766595994711,1542.29,0.00012018,2]
[399667794,1766595994943,1542.29,0.00012372,2]
[399667795,1766595995164,1542.29,0.00012725,2]
[399667796,1766595995401,1542.29,0.00013078,2]
[399667797,1766595995576,1492.54,0.00013432,2]
[399667798,1766595995600,49.75,0.00013432,2]
[399667799,1766596005625,-247.9094407,0.00014207,2]
[399667800,1766596043583,9950.26,0.00014114,2]
[399667801,1766596043609,10000.01,0.00014114,2]
[399667802,1766596043637,9748.76,0.00014114,2]
[399667803,1766596049436,150.57173717,0.00014144,2]
[399667804,1766596138461,9849.43826283,0.00014114,2]
[399667805,1766596138492,10000.01,0.00014114,2]
[399667806,1766596138522,10000.01,0.00014114,2]
[399667807,1766596138553,10000.01,0.00014114,2]
[399667808,1766596138584,10000.01,0.00014114,2]
[399667809,1766596138615,10000.01,0.00014114,2]
[399667810,1766596138645,10000.01,0.00014114,2]
[399667811,1766596138676,10000.01,0.00014114,2]
[399667812,1766596138706,10000.01,0.00014114,2]
[399667813,1766596138736,10000.01,0.00014114,2]
[399667814,1766596138769,900150.47173717,0.00014114,2]
[399667815,1766596147397,580.24678196,0.00014114,2]
[399667816,1766596147441,1316.0389403,0.00014114,2]
[399667817,1766596151078,5651.16950403,0.00014116,2]
[399667818,1766596172147,-5414.7980891,0.00014207,2]
[399667819,1766596181229,208.42,0.00014057,3]
[399667820,1766596186753,9791.59,0.00014114,2]
[399667821,1766596186776,10000.01,0.00014114,2]
[399667822,1766596186799,10000.01,0.00014114,2]
[399667823,1766596186822,10000.01,0.00014114,2]
[399667824,1766596186846,10000.01,0.00014114,2]
[399667825,1766596186874,9339.0062,0.00014114,2]
[399667826,1766596192639,661.0038,0.00014114,2]
[399667827,1766596192663,1838.9962,0.00014114,2]
[399667828,1766596194002,183.850552,0.00014136,2]
[399667832,1766596231345,-3116.3354107,0.00014207,2]
[399667833,1766596231355,-300.0,0.00014207,2]
[399667834,1766596231366,-600.0,0.00014207,2]
[399667835,1766596231376,-300.0,0.00014208,2]
[399667836,1766596231389,-195.0,0.00014209,2]
[399667837,1766596231399,-600.0,0.0001421,2]
[399667838,1766596231409,-300.0,0.0001421,2]
[399667839,1766596231418,-300.0,0.00014211,2]
[399667840,1766596231430,-1200.0,0.00014211,2]
[399667841,1766596231440,-900.0,0.00014212,2]
[399667842,1766596231451,-150.0,0.00014212,2]
[399667843,1766596231462,-300.0,0.00014212,2]
[399667844,1766596231472,-300.0,0.00014212,2]
[399667845,1766596231482,-500.0,0.00014213,2]
[399667846,1766596231492,-1000.0,0.00014213,2]
[399667847,1766596231502,-500.0,0.00014213,2]
[399667848,1766596231512,-500.0,0.00014213,2]
[399667849,1766596231522,-264.79702732,0.00014213,2]
[399667850,1766596231532,-500.0,0.00014213,2]
[399667851,1766596231542,-462.34987463,0.00014213,2]
[399667852,1766596231551,-500.0,0.00014213,2]
[399667853,1766596231561,-500.0,0.00014213,2]
[399667854,1766596231571,-500.0,0.00014213,2]
[399667855,1766596231581,-500.0,0.00014213,2]
[399667856,1766596231591,-500.0,0.00014213,2]
[399667857,1766596231601,-500.0,0.00014213,2]
[399667858,1766596231611,-500.0,0.00014213,2]
[399667859,1766596231621,-500.0,0.00014213,2]
[399667860,1766596231631,-500.0,0.00014213,2]
[399667861,1766596231641,-500.0,0.00014213,2]
[399667862,1766596231651,-500.0,0.00014213,2]
[399667863,1766596231661,-500.0,0.00014213,2]
[399667865,1766596231671,-500.0,0.00014213,2]
[399667867,1766596231681,-500.0,0.00014213,2]
[399667868,1766596231691,-500.0,0.00014213,2]
[399667869,1766596231701,-500.0,0.00014213,2]
[399667870,1766596231711,-500.0,0.00014213,2]
[399667872,1766596231721,-500.0,0.00014213,2]
[399667874,1766596231731,-500.0,0.00014213,2]
[399667876,1766596231741,-500.0,0.00014213,2]
[399667877,1766596231751,-500.0,0.00014213,2]
[399667879,1766596231760,-500.0,0.00014213,2]
[399667881,1766596231770,-500.0,0.00014213,2]
[399667883,1766596231779,-500.0,0.00014213,2]
[399667884,1766596231789,-500.0,0.00014213,2]
[399667886,1766596231799,-500.0,0.00014213,2]
[399667888,1766596231809,-500.0,0.00014213,2]
[399667890,1766596231818,-96.0022044,0.00014213,2]
[399667900,1766596231921,-403.9977956,0.00014213,2]
[399667902,1766596231931,-485.25525606,0.00014213,2]
[399667904,1766596231946,-14.74474394,0.00014213,2]
[399667906,1766596231956,-500.0,0.00014213,2]
[399667908,1766596231966,-500.0,0.00014213,2]
[399667910,1766596231977,-500.0,0.00014213,2]
[399667912,1766596231986,-500.0,0.00014213,2]
[399667914,1766596231997,-500.0,0.00014213,2]
[399667915,1766596232006,-500.0,0.00014213,2]
[399667917,1766596232016,-500.0,0.00014213,2]
[399667919,1766596232026,-500.0,0.00014213,2]
[399667920,1766596232036,-500.0,0.00014213,2]
[399667921,1766596232046,-238.02540934,0.00014213,2]
[399667922,1766596232055,-500.0,0.00014213,2]
[399667923,1766596232065,-500.0,0.00014213,2]
[399667924,1766596232076,-500.0,0.00014213,2]
[399667925,1766596232085,-650.0,0.00014213,2]
[399667926,1766596232095,-500.0,0.00014213,2]
[399667927,1766596232105,-500.0,0.00014213,2]
[399667928,1766596232115,-500.0,0.00014213,2]
[399667929,1766596232126,-500.0,0.00014213,2]
[399667930,1766596232136,-162.0,0.00014213,2]
[399667931,1766596232146,-500.0,0.00014213,2]
[399667932,1766596232156,-500.0,0.00014213,2]
[399667933,1766596232165,-500.0,0.00014213,2]
[399667934,1766596232175,-500.0,0.00014213,2]
[399667935,1766596232184,-500.0,0.00014213,2]
[399667936,1766596232194,-500.0,0.00014213,2]
[399667937,1766596232203,-413.54505291,0.00014213,2]
[399667938,1766596232213,-500.0,0.00014213,2]
[399667939,1766596232222,-500.0,0.00014213,2]
[399667940,1766596232232,-500.0,0.00014213,2]
[399667941,1766596232241,-500.0,0.00014213,2]
[399667942,1766596232251,-500.0,0.00014213,2]
[399667943,1766596232261,-500.0,0.00014213,2]
[399667944,1766596232270,-500.0,0.00014213,2]
[399667945,1766596232280,-556.37424666,0.00014213,2]
[399667946,1766596232291,-195.0,0.00014214,2]
[399667947,1766596232301,-47797.93857699,0.00014214,2]
[399667948,1766596232314,-1051.5652764,0.00014214,2]
[399667957,1766596237537,-188841.78517436,0.00014214,2]
[399667958,1766596237548,-200.0,0.00014214,2]
[399667959,1766596237559,-624.12311747,0.00014216,2]
[399667960,1766596237573,-500.0,0.00014236,2]
[399667961,1766596237584,-500.0,0.00014236,2]
[399667962,1766596237594,-500.0,0.00014236,2]
[399667963,1766596237603,-200.0,0.00014236,2]
[399667964,1766596237613,-500.0,0.00014236,2]
[399667965,1766596237623,-500.0,0.00014236,2]
[399667966,1766596237633,-500.0,0.00014236,2]
[399667967,1766596237643,-500.0,0.00014236,2]
[399667968,1766596237653,-500.0,0.00014236,2]
[399667969,1766596237663,-500.0,0.00014236,2]
[399667970,1766596237673,-500.0,0.00014236,2]
[399667971,1766596237683,-207.4,0.00014236,2]
[399667972,1766596237693,-500.0,0.00014236,2]
[399667973,1766596237703,-500.0,0.00014236,2]
[399667974,1766596237713,-200.0,0.00014236,2]
[399667975,1766596237723,-151.0,0.00014236,2]
[399667976,1766596237734,-151.0,0.00014236,2]
[399667977,1766596237744,-151.0,0.00014236,2]
[399667978,1766596237754,-151.0,0.00014236,2]
[399667979,1766596237764,-151.0,0.00014236,2]
[399667980,1766596237773,-151.0,0.00014236,2]
[399667981,1766596237783,-151.0,0.00014236,2]
[399667982,1766596237799,-151.0,0.00014236,2]
[399667983,1766596237809,-151.0,0.00014236,2]
[399667984,1766596237820,-151.0,0.00014236,2]
[399667985,1766596237830,-151.0,0.00014236,2]
[399667986,1766596237840,-151.0,0.00014236,2]
[399667987,1766596237850,-151.0,0.00014236,2]
[399667989,1766596237860,-153.43746121,0.00014236,2]
[399667991,1766596237870,-1514.36,0.00014236,2]
[399667993,1766596237880,-9999.99,0.00014242,2]
[399667995,1766596237890,-9999.99,0.00014242,2]
[399667997,1766596237900,-150.99,0.00014242,2]
[399667999,1766596237910,-500.0,0.00014243,2]
[399668001,1766596237921,-500.0,0.00014243,2]
[399668003,1766596237931,-500.0,0.00014243,2]
[399668006,1766596237941,-500.0,0.00014243,2]
[399668008,1766596237951,-500.0,0.00014243,2]
[399668010,1766596237962,-500.0,0.00014243,2]
[399668011,1766596237972,-500.0,0.00014243,2]
[399668013,1766596237983,-500.0,0.00014243,2]
[399668015,1766596237993,-500.0,0.00014243,2]
[399668017,1766596238003,-500.0,0.00014243,2]
[399668019,1766596238013,-500.0,0.00014243,2]
[399668021,1766596238024,-500.0,0.00014243,2]
[399668023,1766596238034,-500.0,0.00014243,2]
[399668025,1766596238045,-500.0,0.00014243,2]
[399668027,1766596238056,-500.0,0.00014243,2]
[399668029,1766596238067,-500.0,0.00014243,2]
[399668032,1766596238078,-2160.07046784,0.00014243,2]
[399668033,1766596238089,-500.0,0.00014243,2]
[399668035,1766596238099,-500.0,0.00014243,2]
[399668037,1766596238109,-500.0,0.00014243,2]
[399668039,1766596238120,-500.0,0.00014243,2]
[399668041,1766596238130,-500.0,0.00014243,2]
[399668044,1766596238146,-287.11465544,0.00014243,2]
[399668046,1766596238157,-1474.41,0.00014243,2]
[399668048,1766596238168,-999.99,0.00014243,2]
[399668050,1766596238178,-2033.81,0.00014243,2]
[399668052,1766596238188,-46071.42,0.00014243,2]
[399668054,1766596238198,-500.0,0.00014243,2]
[399668056,1766596238209,-500.0,0.00014243,2]
[399668057,1766596238219,-1102.4,0.00014243,2]
[399668059,1766596238229,-150.99,0.00014243,2]
[399668061,1766596238240,-500.0,0.00014243,2]
[399668063,1766596238250,-500.0,0.00014243,2]
[399668065,1766596238260,-500.0,0.00014243,2]
[399668067,1766596238271,-500.0,0.00014243,2]
[399668069,1766596238281,-500.0,0.00014243,2]
[399668071,1766596238292,-500.0,0.00014243,2]
[399668073,1766596238302,-582.59898014,0.00014243,2]
[399668075,1766596238311,-485.01035695,0.00014243,2]
[399668077,1766596238321,-500.0,0.00014243,2]
[399668080,1766596238332,-500.0,0.00014243,2]
[399668081,1766596238342,-500.0,0.00014243,2]
[399668084,1766596238352,-500.0,0.00014243,2]
[399668086,1766596238362,-500.0,0.00014243,2]
[399668088,1766596238372,-500.0,0.00014243,2]
[399668090,1766596238383,-335.03874322,0.00014243,2]
[399668092,1766596238396,-500.0,0.00014243,2]
[399668094,1766596238407,-494.82792561,0.00014243,2]
[399668095,1766596238417,-283.12509107,0.00014243,2]
[399668097,1766596238427,-26818.7063081,0.00014244,2]
[399668099,1766596238437,-200.0,0.00014244,2]
[399668101,1766596238448,-140359.13402,0.00014244,2]
[399668104,1766596238459,-200.0,0.00014244,2]
[399668106,1766596238470,-500.0,0.00014244,2]
[399668108,1766596238480,-500.0,0.00014244,2]
[399668110,1766596238491,-500.0,0.00014244,2]
[399668112,1766596238501,-500.0,0.00014244,2]
[399668114,1766596238514,-1005.3,0.00014244,2]
[399668116,1766596238524,-174.974,0.00014244,2]
[399668118,1766596238535,-500.0,0.00014244,2]
[399668120,1766596238546,-500.0,0.00014244,2]
[399668122,1766596238556,-500.0,0.00014244,2]
[399668124,1766596238567,-500.0,0.00014244,2]
[399668126,1766596238577,-500.0,0.00014244,2]
[399668128,1766596238588,-500.0,0.00014244,2]
[399668130,1766596238598,-500.0,0.00014244,2]
[399668132,1766596238608,-500.0,0.00014244,2]
[399668134,1766596238619,-200.0,0.00014244,2]
[399668136,1766596238631,-500.0,0.00014244,2]
[399668138,1766596238643,-500.0,0.00014244,2]
[399668140,1766596238653,-150.0,0.00014244,2]
[399668142,1766596238664,-500.0,0.00014244,2]
[399668144,1766596238674,-500.0,0.00014244,2]
[399668146,1766596238684,-500.0,0.00014244,2]
[399668148,1766596238694,-1000.0,0.00014245,2]
[399668151,1766596238709,-166.66,0.00014246,2]
[399668153,1766596238719,-247.9094407,0.00014279,2]
[399668155,1766596238730,-150.0,0.00014279,2]
[399668157,1766596238740,-500.0,0.00014279,2]
[399668159,1766596238751,-150.0,0.00014279,2]
[399668161,1766596238761,-156.07144864,0.00014306,2]
[399668163,1766596238771,-552.0,0.00014306,2]
[399668165,1766596238780,-288.62652423,0.00014306,2]
[399668167,1766596238790,-531.5118952,0.00014344,2]
[399668169,1766596238801,-500.0,0.00014344,2]
[399668171,1766596238811,-194.84476554,0.00014344,2]
[399668173,1766596238821,-200.0,0.00014386,2]
[399668175,1766596238831,-200.0,0.00014386,2]
[399668177,1766596238841,-200.0,0.00014386,2]
[399668179,1766596238851,-2421.76,0.0001443,2]
[399668181,1766596238861,-500.0,0.00014487,2]
[399668183,1766596238871,-3240.0,0.00014493,2]
[399668185,1766596238882,-3933.70575324,0.0001451,2]
[399668187,1766596238892,-1514.36,0.0001451,2]
[399668189,1766596238905,-200.0,0.0001453,2]
[399668191,1766596238915,-200.0,0.0001453,2]
[399668193,1766596238927,-200.0,0.0001453,2]
[399668195,1766596238938,-166.66,0.00014533,2]
[399668197,1766596238948,-5651.16950398,0.00014536,2]
[399668199,1766596238959,-500.0,0.00014546,2]
[399668201,1766596238970,-500.0,0.00014546,2]
[399668203,1766596238981,-500.0,0.00014546,2]
[399668205,1766596238992,-500.0,0.00014546,2]
[399668207,1766596239003,-500.0,0.00014546,2]
[399668209,1766596239014,-500.0,0.00014546,2]
[399668211,1766596239025,-242.06394647,0.00014546,2]
[399668213,1766596239035,-500.0,0.00014546,2]
[399668215,1766596239045,-16165.84612425,0.0001456,2]
[399668217,1766596239056,-1672.0,0.00014601,2]
[399668219,1766596239066,-1509.0,0.0001463,2]
[399668221,1766596239077,-784.0,0.00014659,2]
[399668223,1766596239087,-200.0,0.00014676,2]
[399668225,1766596239098,-200.0,0.00014676,2]
[399668227,1766596239109,-200.0,0.00014676,2]
[399668229,1766596239119,-22864.96359874,0.00014678,2]
[399668231,1766596239130,-201.4900217,0.00014761,2]
[399668233,1766596239140,-200.0,0.00014784,2]
[399668235,1766596239151,-200.0,0.00014784,2]
[399668237,1766596239161,-1514.36,0.00014784,2]
[399668240,1766596239173,-166.66,0.00014821,2]
[399668242,1766596239183,-200.0,0.00014822,2]
[399668244,1766596239194,-200.0,0.00014822,2]
[399668246,1766596239204,-500.0,0.00014835,2]
[399668248,1766596239214,-5651.16950398,0.00014957,2]
[399668251,1766596239224,-32943.61,0.00014969,2]
[399668253,1766596239234,-16165.84612425,0.00014978,2]
[399668255,1766596239244,-1514.36,0.00015058,2]
[399668256,1766596239255,-166.66,0.00015109,2]
[399668258,1766596239265,-174.83400543,0.00015173,2]
[399668260,1766596239274,-502.01719743,0.00015173,2]
[399668264,1766596239298,-164.80244684,0.00015173,2]
[399668266,1766596239309,-502.0801392,0.00015173,2]
[399668268,1766596239319,-500.0,0.00015173,2]
[399668270,1766596239329,-500.0,0.00015173,2]
[399668272,1766596239339,-500.0,0.00015173,2]
[399668274,1766596239349,-500.0,0.00015173,2]
[399668276,1766596239359,-162.11626746,0.00015173,2]
[399668278,1766596239369,-500.0,0.00015173,2]
[399668281,1766596239379,-537.88170422,0.00015173,2]
[399668284,1766596239392,-500.0,0.00015173,2]
[399668287,1766596239401,-501.65480371,0.00015173,2]
[399668290,1766596239411,-500.35332728,0.00015173,2]
[399668293,1766596239421,-500.0,0.00015173,2]
[399668296,1766596239432,-500.0,0.00015173,2]
[399668300,1766596239442,-500.0,0.00015173,2]
[399668303,1766596239452,-254.14415415,0.00015173,2]
[399668305,1766596239462,-500.0,0.00015173,2]
[399668307,1766596239474,-500.0,0.00015205,2]
[399668308,1766596239484,-1514.36,0.00015332,2]
[399668309,1766596239493,-255.0,0.00015335,2]
[399668310,1766596239503,-5651.16950398,0.00015377,2]
[399668311,1766596239513,-16165.84612425,0.00015395,2]
[399668312,1766596239523,-1000.0,0.00015441,2]
[399668313,1766596239533,-179.64,0.00015468,2]
[399668315,1766596239542,-152.88,0.00015487,2]
[399668317,1766596239552,-285.4,0.00015518,2]
[399668319,1766596239561,-420.0,0.00015567,2]
[399668321,1766596239571,-420.0,0.00015567,2]
[399668323,1766596239581,-1514.36,0.00015605,2]
[399668325,1766596239590,-193.0,0.00015628,2]
[399668327,1766596239600,-600.0,0.00015628,2]
[399668329,1766596239609,-300.0,0.00015628,2]
[399668331,1766596239619,-195.0,0.00015628,2]
[399668333,1766596239629,-250.0,0.00015628,2]
[399668336,1766596239639,-300.0,0.00015628,2]
[399668338,1766596239654,-600.0,0.00015628,2]
[399668340,1766596239664,-195.0,0.00015628,2]
[399668342,1766596239674,-250.0,0.00015628,2]
[399668344,1766596239685,-300.0,0.00015628,2]
[399668346,1766596239695,-1680.0,0.00015632,2]
[399668348,1766596239705,-195.0,0.00015634,2]
[399668351,1766596239715,-250.0,0.00015634,2]
[399668353,1766596239725,-1000.0,0.00015721,2]
[399668355,1766596239735,-507.00799583,0.00015721,2]
[399668357,1766596239745,-1000.0,0.00015721,2]
[399668358,1766596239755,-502.71013212,0.00015721,2]
[399668360,1766596239764,-1000.0,0.00015721,2]
[399668362,1766596239775,-1000.0,0.00015721,2]
[399668363,1766596239785,-513.73048679,0.00015721,2]
[399668365,1766596239795,-500.0,0.00015753,2]
[399668366,1766596239805,-5651.16950398,0.00015798,2]
[399668367,1766596239815,-16165.84612425,0.00015813,2]
[399668368,1766596239825,-1514.36,0.00015879,2]
[399668369,1766596239835,-209.40437684,0.00015887,2]
[399668370,1766596239845,-721.12765535,0.00015887,2]
[399668371,1766596239855,-543.0,0.00015887,2]
[399668372,1766596239866,-153.19657101,0.00015887,2]
[399668373,1766596239876,-574.12855637,0.00015887,2]
[399668374,1766596239886,-151.0,0.00015887,2]
[399668375,1766596239896,-504.50965357,0.00015887,2]
[399668376,1766596239907,-578.20924308,0.00015887,2]
[399668377,1766596239917,-250.0,0.00015887,2]
[399668379,1766596240355,-250.0,0.00015887,2]
[399668380,1766596240366,-250.0,0.00015887,2]
[399668381,1766596240375,-250.0,0.00015887,2]
[399668382,1766596240389,-250.0,0.00015887,2]
[399668383,1766596240398,-250.0,0.00015887,2]
[399668384,1766596240408,-250.0,0.00015887,2]
[399668385,1766596240418,-250.0,0.00015887,2]
[399668386,1766596240428,-250.0,0.00015887,2]
[399668387,1766596240438,-208.5647437,0.00015887,2]
[399668388,1766596240448,-500.0,0.00015887,2]
[399668389,1766596240459,-250.0,0.00015887,2]
[399668390,1766596240469,-250.0,0.00015887,2]
[399668391,1766596240479,-500.0,0.00015887,2]
[399668392,1766596240488,-250.0,0.00015887,2]
[399668393,1766596240498,-250.0,0.00015887,2]
[399668394,1766596240507,-500.0,0.00015887,2]
[399668395,1766596240517,-250.0,0.00015887,2]
[399668396,1766596240527,-500.0,0.00015887,2]
[399668397,1766596240537,-500.0,0.00015887,2]
[399668398,1766596240547,-500.0,0.00015887,2]
[399668399,1766596240556,-250.0,0.00015887,2]
[399668400,1766596240566,-500.0,0.00015887,2]
[399668401,1766596240577,-500.0,0.00015887,2]
[399668402,1766596240587,-250.0,0.00015887,2]
[399668403,1766596240597,-500.0,0.00015887,2]
[399668404,1766596240611,-500.0,0.00015887,2]
[399668405,1766596240621,-500.0,0.00015887,2]
[399668406,1766596240630,-250.0,0.00015887,2]
[399668407,1766596240640,-162.42297638,0.00015887,2]
[399668408,1766596240650,-500.0,0.00015887,2]
[399668409,1766596240660,-500.0,0.00015887,2]
[399668410,1766596240670,-250.0,0.00015887,2]
[399668411,1766596240679,-500.0,0.00015887,2]
[399668412,1766596240689,-500.0,0.00015887,2]
[399668413,1766596240699,-500.0,0.00015887,2]
[399668414,1766596240709,-500.0,0.00015887,2]
[399668415,1766596240719,-500.0,0.00015887,2]
[399668416,1766596240728,-500.0,0.00015887,2]
[399668417,1766596240738,-322.6107,0.00015887,2]
[399668418,1766596240749,-500.0,0.00015887,2]
[399668419,1766596240759,-500.0,0.00015887,2]
[399668420,1766596240768,-500.0,0.00015887,2]
[399668421,1766596240778,-500.0,0.00015887,2]
[399668422,1766596240787,-500.0,0.00015887,2]
[399668423,1766596240801,-500.0,0.00015887,2]
[399668424,1766596240810,-414.81438464,0.00015887,2]
[399668425,1766596240820,-322.78312333,0.00015887,2]
[399668426,1766596240829,-250.0,0.00015887,2]
[399668427,1766596240839,-250.0,0.00015887,2]
[399668428,1766596240849,-250.0,0.00015887,2]
[399668429,1766596240859,-250.0,0.00015887,2]
[399668430,1766596240869,-250.0,0.00015887,2]
[399668431,1766596240880,-250.0,0.00015887,2]
[399668432,1766596240890,-250.0,0.00015887,2]
[399668433,1766596240900,-250.0,0.00015887,2]
[399668434,1766596240911,-250.0,0.00015887,2]
[399668435,1766596240922,-250.0,0.00015887,2]
[399668436,1766596240933,-250.0,0.00015887,2]
[399668437,1766596240943,-250.0,0.00015887,2]
[399668438,1766596240953,-500.0,0.00015887,2]
[399668439,1766596240964,-250.0,0.00015887,2]
[399668440,1766596240974,-250.0,0.00015887,2]
[399668441,1766596240984,-500.0,0.00015887,2]
[399668442,1766596240994,-250.0,0.00015887,2]
[399668443,1766596241007,-250.0,0.00015887,2]
[399668444,1766596241017,-500.0,0.00015887,2]
[399668445,1766596241028,-250.0,0.00015887,2]
[399668446,1766596241038,-250.0,0.00015887,2]
[399668447,1766596241048,-500.0,0.00015887,2]
[399668448,1766596241058,-250.0,0.00015887,2]
[399668449,1766596241068,-250.0,0.00015887,2]
[399668450,1766596241079,-500.0,0.00015887,2]
[399668451,1766596241089,-250.0,0.00015887,2]
[399668452,1766596241099,-500.0,0.00015887,2]
[399668453,1766596241110,-250.0,0.00015887,2]
[399668454,1766596241120,-500.0,0.00015887,2]
[399668455,1766596241130,-200.0,0.00015887,2]
[399668456,1766596241141,-207.4,0.00015887,2]
[399668457,1766596241151,-620.0,0.00015887,2]
[399668458,1766596241163,-215.0738,0.00015887,2]
[399668459,1766596241174,-223.0315306,0.00015887,2]
[399668460,1766596241184,-500.0,0.00015887,2]
[399668461,1766596241194,-231.28369723,0.00015887,2]
[399668462,1766596241204,-500.0,0.00015887,2]
[399668463,1766596241214,-239.84119403,0.00015887,2]
[399668464,1766596241224,-500.0,0.00015887,2]
[399668465,1766596241234,-500.0,0.00015887,2]
[399668466,1766596241244,-248.71531821,0.00015887,2]
[399668467,1766596241254,-257.91778498,0.00015887,2]
[399668468,1766596241264,-267.46074303,0.00015887,2]
[399668469,1766596241274,-277.35679052,0.00015887,2]
[399668470,1766596241284,-151.0,0.00015887,2]
[399668471,1766596241294,-6192.0,0.00015954,2]
[399668472,1766596241304,-200.0,0.00016029,2]
[399668473,1766596241314,-4482.75,0.00016116,2]
[399668474,1766596241324,-1514.36,0.00016153,2]
[399668475,1766596241336,-1000.0,0.00016175,2]
[399668476,1766596241346,-1000.0,0.00016175,2]
[399668477,1766596241357,-1000.0,0.00016175,2]
[399668478,1766596241368,-751.847,0.00016175,2]
[399668479,1766596241391,-5651.16950398,0.00016218,2]
[399668480,1766596241404,-16165.84612425,0.0001623,2]
[399668481,1766596241414,-1143.40275555,0.00016267,5]
[399668482,1766596241424,-853.92874992,0.00016268,2]
[399668483,1766596241436,-1479.77732969,0.00016268,2]
[399668484,1766596241446,-1500.0,0.00016268,2]
[399668485,1766596241456,-1339.47657605,0.00016268,2]
[399668486,1766596241468,-161.28333362,0.00016335,2]
[399668487,1766596241478,-31318.3560521,0.00016386,2]
[399668488,1766596241489,-1514.36,0.00016427,2]
[399668489,1766596241499,-217.15233878,0.00016435,2]
[399668490,1766596241509,-595.37131296,0.00016435,2]
[399668491,1766596241518,-500.0,0.00016437,2]
[399668492,1766596241528,-150.0,0.00016438,2]
[399668493,1766596241539,-500.0,0.00016438,2]
[399668494,1766596241549,-500.0,0.00016438,2]
[399668495,1766596241560,-500.0,0.00016438,2]
[399668496,1766596241572,-500.0,0.00016438,2]
[399668497,1766596241582,-500.0,0.00016438,2]
[399668498,1766596241593,-500.0,0.00016438,2]
[399668499,1766596241603,-500.0,0.00016438,2]
[399668500,1766596241613,-500.0,0.00016438,2]
[399668501,1766596241623,-500.0,0.00016438,2]
[399668502,1766596241633,-500.0,0.00016438,2]
[399668503,1766596241643,-500.0,0.00016438,2]
[399668504,1766596241654,-500.0,0.00016438,2]
[399668505,1766596241664,-500.0,0.00016438,2]
[399668506,1766596241675,-500.0,0.00016438,2]